[Event "44th Chess Olympiad Open 2022"]
[Site "Chennai"]
[Date "2022.08.05"]
[Round "7.23"]
[White "Murphy, Conor E"]
[Black "Fawzy, Adham"]
[Result "1-0"]
[ECO "B30"]
[WhiteElo "2404"]
[BlackElo "2471"]
[Annotator "TA"]
[PlyCount "95"]
[EventDate "2022.07.29"]
[EventType "team-tourn"]
[EventCountry "IND"]
[SourceTitle "playchess.com"]
[Source "ChessBase"]
[SourceQuality "1"]
[WhiteTeam "Ireland"]
[BlackTeam "Egypt"]
[WhiteTeamCountry "IRL"]
[BlackTeamCountry "EGY"]
[TimeControl "40/5400+30:1800+30"]

{[%evp 14,95,35,15,20,24,142,21,21,34,29,31,43,37,39,36,76,83,66,68,84,95,107,115,116,106,137,124,133,128,118,125,143,137,127,117,225,220,212,207,220,227,218,203,217,0,193,0,211,222,289,309,296,303,358,331,359,350,397,397,381,259,260,265,301,339,366,336,437,438,399,381,547,519,618,620,662,644,536,569,762,647,2169,2031]} 1. e4 {[%emt 0:00:05]} c5 {[%emt 0:00:17]} 2. Nf3 {[%emt 0:00:11]} Nc6 {[%emt 0:00:03]} 3. Nc3 {[%emt 0:00:23]} Nf6 {[%emt 0:01:37][%cal Bg8f6,Bf6d5,Bd5b4][%mdl 32]} 4. Bb5 {[%emt 0:00:20]} Nd4 {[%emt 0:09:25]} 5. e5 {[%emt 0:00:35]} Nxb5 {[%emt 0:06:01]} 6. Nxb5 {[%emt 0:00:09]} Nd5 {[%emt 0:01:16]} 7. O-O {[%emt 0:01:08]} a6 {[%emt 0:03:39]} 8. c4 {[%emt 0:01:43]} Nb4 {[%emt 0:11:20] B30: Sicilian: 2...Nc6 3 Bb5, lines without ...g6.} 9. Nc3 {[%emt 0:01:04]} g6 {[%emt 0:07:24]} (9... d6 $1 $11) 10. Ne4 {[%emt 0:14:56] [#]} (10. d4 $16) 10... Bg7 $146 {[%emt 0:03:42] The position is equal.} ({Predecessor:} 10... b6 11. d4 cxd4 12. Bg5 Bg7 13. Nd6+ Kf8 14. Qb3 {1-0 (14) Vittal,S (1961)-Ruiz Villalba,A (1757) Charlotte 2020}) 11. Nxc5 {[%emt 0:12:50]} O-O {[%emt 0:00:26]} 12. d4 {[%emt 0:04:29]} d6 {[%emt 0:01:29]} 13. exd6 {[%emt 0:06:45]} exd6 {[%emt 0:00:07]} 14. Nd3 {[%emt 0:03:06][%cal Bc5d3,Bd3b4,Bb4c2,Bc2d4,Bd4b5][%mdl 32]} Qb6 {[%emt 0:10:59]} 15. Qb3 {[%emt 0:05:10]} a5 {[%emt 0:01:27]} 16. Be3 $36 {[%emt 0:06:12][%mdl 2048] White has some pressure.} Bg4 {[%emt 0:05:05]} 17. d5 {[%emt 0:08:33]} Qd8 {[%emt 0:06:53]} 18. Nxb4 {[%emt 0:05:04]} Bxf3 {[%emt 0:00:47] [#]} 19. Nc2 $1 {[%emt 0:07:21]} (19. gxf3 $6 axb4 20. Kg2 (20. Qxb4 Be5 $11) 20... Be5 $11) 19... Be4 {[%emt 0:07:41]} 20. Nd4 {[%emt 0:01:03]} Be5 {[%emt 0:04:06][%cal Oe5h2]} 21. h3 {[%emt 0:06:06]} Qh4 {[%emt 0:02:50]} 22. Nb5 {[%emt 0:01:49]} (22. Qxb7 $6 Rab8 23. Qd7 Rxb2 $11) 22... g5 {[%emt 0:04:55] Prevents f4.} 23. Rad1 {[%emt 0:05:37]} g4 {[%emt 0:01:27]} 24. Bd4 {[%emt 0:02:13]} gxh3 {[%emt 0:04:54]} (24... Bf3 $16) 25. Qxh3 $18 {[%emt 0:00:59]} Qxh3 {[%emt 0:01:46]} 26. gxh3 {[%emt 0:00:02]} Bf3 {[%emt 0:01:37]} 27. Rde1 {[%emt 0:01:08]} Bf4 {[%emt 0:01:25]} 28. Be3 {[%emt 0:00:55]} Be5 {[%emt 0:00:43]} 29. Bd4 {[%emt 0:00:04]} Bf4 {[%emt 0:00:04]} 30. Be3 {[%emt 0:00:04]} Be5 {[%emt 0:00:02] A strong pair of Bishops.} 31. Bh6 {[%emt 0:00:49] Strongly threatening Re3.} Rfc8 {[%emt 0:01:57]} 32. Re3 {[%emt 0:00:52]} Bh5 {[%emt 0:00:17]} 33. b3 {[%emt 0:00:41]} (33. f4 Bxb2 34. Rb1 (34. Nxd6 Bd4 $16) 34... Bf6 35. Rg3+ (35. Nxd6 Bd4 $16) 35... Kh8 $18) 33... Kh8 {[%emt 0:00:40]} 34. f4 {[%emt 0:01:12]} Bf6 {[%emt 0:00:21]} 35. Kh2 {[%emt 0:01:03]} ({Not} 35. Nxd6 Bd4 $18) 35... a4 {[%emt 0:00:34]} 36. Nxd6 {[%emt 0:02:00]} Rd8 {[%emt 0:00:01]} 37. Rfe1 {[%emt 0:01:02] And now Re8+ would win.} axb3 {[%emt 0:00:25] [#]} 38. axb3 {[%emt 0:00:44] Hoping for Re8+.} Rg8 {[%emt 0:00:31]} (38... Bd4 39. Re8+) 39. Bg5 {[%emt 0:00:56]} ({And not} 39. Nxb7 Bd4 $11) 39... Ra2+ {[%emt 0:01:06]} 40. Kh1 {[%emt 0:00:31]} Bxg5 {[%emt 0:00:37]} 41. fxg5 {[%emt 0:03:37]} Rxg5 {[%emt 0:00:08]} 42. Rg1 {[%emt 0:02:51]} Rxg1+ {[%emt 0:01:51]} 43. Kxg1 {[%emt 0:00:24] KRB-KRN. White is clearly winning.} Kg7 {[%emt 0:00:23]} 44. Nxb7 {[%emt 0:01:55]} f5 {[%emt 0:00:02]} 45. Nc5 {[%emt 0:00:35]} Kf6 {[%emt 0:01:49]} 46. Nd3 {[%emt 0:03:14]} Kg5 {[%emt 0:05:37]} 47. d6 {[%emt 0:01:39][%cal Bd5d6,Bd6d7][%mdl 32]} f4 {[%emt 0:00:25]} 48. d7 {[%emt 0:00:54] Weighted Error Value: White=0.23 (precise) /Black=0.30} 1-0

[Event "44th Chess Olympiad Open 2022"]
[Site "Chennai"]
[Date "2022.08.05"]
[Round "7.23"]
[White "Hesham, Abdelrahman"]
[Black "O`Gorman, Tom"]
[Result "1/2-1/2"]
[ECO "D36"]
[WhiteElo "2386"]
[BlackElo "2401"]
[Annotator "RC"]
[PlyCount "95"]
[EventDate "2022.07.29"]
[EventType "team-tourn"]
[EventCountry "IND"]
[SourceTitle "playchess.com"]
[Source "ChessBase"]
[SourceQuality "1"]
[WhiteTeam "Egypt"]
[BlackTeam "Ireland"]
[WhiteTeamCountry "EGY"]
[BlackTeamCountry "IRL"]
[TimeControl "40/5400+30:1800+30"]

1. d4 {[%emt 0:00:02]} Nf6 {[%emt 0:00:11]} 2. c4 {[%emt 0:00:05]} e6 {[%emt 0:00:08]} 3. Nc3 {[%emt 0:00:04]} d5 {[%emt 0:00:06]} 4. cxd5 {[%emt 0:00:05]} exd5 {[%emt 0:00:07]} 5. Bg5 {[%emt 0:00:04]} Be7 {[%emt 0:00:08]} 6. e3 {[%emt 0:00:04]} O-O {[%emt 0:00:23]} 7. Bd3 {[%emt 0:00:04]} c6 {[%emt 0:00:10]} 8. Nge2 {[%emt 0:02:38]} Nbd7 {[%emt 0:00:10]} 9. Qc2 {[%emt 0:00:26]} Re8 {[%emt 0:00:08]} 10. h3 {[%emt 0:01:47]} Nf8 {[%emt 0:04:24]} 11. O-O-O {[%emt 0:01:55]} Ne4 {[%emt 0:06:42]} 12. Bxe7 {[%emt 0:00:39]} Qxe7 {[%emt 0:00:08]} 13. Bxe4 {[%emt 0:00:16]} dxe4 {[%emt 0:00:10]} 14. g4 {[%emt 0:00:04]} Be6 {[%emt 0:12:20]} 15. Qxe4 {[%emt 0:13:23]} b5 {[%emt 0:00:38]} 16. d5 {[%emt 0:05:34]} cxd5 {[%emt 0:03:50]} 17. Nxd5 {[%emt 0:00:13]} Qc5+ {[%emt 0:02:09]} 18. Kb1 {[%emt 0:00:35]} Rad8 {[%emt 0:18:08]} 19. Nec3 {[%emt 0:19:51]} a5 {[%emt 0:14:15]} 20. a3 {[%emt 0:00:00]} Bxd5 {[%emt 0:01:16]} 21. Rxd5 {[%emt 0:00:00]} Qc6 {[%emt 0:00:08]} 22. Qd3 {[%emt 0:00:00]} b4 {[%emt 0:01:08]} 23. axb4 {[%emt 0:00:00]} axb4 {[%emt 0:00:19]} 24. Rxd8 {[%emt 0:00:06]} Qxh1+ {[%emt 0:01:10]} 25. Nd1 {[%emt 0:00:06]} Rxd8 {[%emt 0:00:28]} 26. Qxd8 {[%emt 0:00:05]} Qxh3 {[%emt 0:01:37]} 27. Qd4 {[%emt 0:00:29]} h5 {[%emt 0:01:12]} 28. gxh5 {[%emt 0:05:03]} Qxh5 {[%emt 0:00:41]} 29. Kc2 {[%emt 0:07:23]} Qb5 {[%emt 0:02:22]} 30. b3 {[%emt 0:17:43]} Ne6 {[%emt 0:00:48]} 31. Qd3 {[%emt 0:00:11]} Qc6+ {[%emt 0:01:21]} 32. Kd2 {[%emt 0:01:01]} g6 {[%emt 0:06:54]} 33. Nb2 {[%emt 0:00:41]} Qf3 {[%emt 0:00:58]} 34. Ke1 {[%emt 0:02:38]} Qh1+ {[%emt 0:02:58]} 35. Ke2 {[%emt 0:04:37]} Qh5+ {[%emt 0:00:37]} 36. Kd2 {[%emt 0:01:06]} Qf3 {[%emt 0:00:15]} 37. Nd1 {[%emt 0:13:01]} Qc6 {[%emt 0:01:46]} 38. Ke2 {[%emt 0:06:23]} Qc5 {[%emt 0:08:44]} 39. Qe4 {[%emt 0:01:05]} Kf8 {[%emt 0:01:07]} 40. Qa8+ {[%emt 0:00:28]} Ke7 {[%emt 0:00:35]} 41. Qe4 {[%emt 0:30:15]} Qb5+ {[%emt 0:33:45]} 42. Qd3 {[%emt 0:00:00]} Qc5 {[%emt 0:00:00]} 43. f4 {[%emt 0:00:00]} Qc1 {[%emt 0:00:00]} 44. Qe4 {[%emt 0:01:40]} Qc5 {[%emt 0:00:00]} 45. Nf2 {[%emt 0:00:00]} Qc3 {[%emt 0:00:00]} 46. Nd3 {[%emt 0:00:00]} Qc2+ {[%emt 0:00:00]} 47. Kf3 {[%emt 0:00:00]} Qxb3 {[%emt 0:00:00]} 48. Qxb4+ {[%emt 0:01:05]} 1/2-1/2

[Event "44th Chess Olympiad Open 2022"]
[Site "Chennai"]
[Date "2022.08.05"]
[Round "7.23"]
[White "Kanyamarala, Tarun"]
[Black "Wageih, Kareim"]
[Result "1/2-1/2"]
[ECO "D11"]
[WhiteElo "2379"]
[BlackElo "2387"]
[Annotator "TA"]
[PlyCount "106"]
[EventDate "2022.07.29"]
[EventType "team-tourn"]
[EventCountry "IND"]
[SourceTitle "playchess.com"]
[Source "ChessBase"]
[SourceQuality "1"]
[WhiteTeam "Ireland"]
[BlackTeam "Egypt"]
[WhiteTeamCountry "IRL"]
[BlackTeamCountry "EGY"]
[TimeControl "40/5400+30:1800+30"]

{[%evp 9,106,11,6,0,0,-8,-10,-18,-7,-14,0,0,7,-10,0,0,0,0,33,23,18,8,23,0,16,19,50,54,76,70,70,63,70,56,68,68,75,77,75,68,70,76,81,74,77,65,78,66,64,66,94,89,102,42,41,48,47,27,27,23,25,18,18,25,12,32,18,0,0,0,0,0,0,8,8,8,8,8,8,8,8,8,8,8,8,8,8,8,8,8,8,8,14,0,0,0,0,0,0]} 1. d4 {[%emt 0:00:09]} d5 {[%emt 0:01:04]} 2. c4 {[%emt 0:00:25]} c6 {[%emt 0:00:04]} 3. Nf3 {[%emt 0:00:18]} Nf6 {[%emt 0:00:05]} 4. g3 {[%emt 0:00:14]} Bg4 {[%emt 0:04:27]} 5. Ne5 {[%emt 0:00:25]} Bf5 {[%emt 0:00:31]} 6. Nc3 {[%emt 0:02:37] D11: Slav Defence: 3 Nf3 sidelines and 3...Nf6 4 e3 Bg4.} e6 {[%emt 0:01:58]} 7. Qb3 {[%emt 0:09:54]} Qb6 {[%emt 0:02:50]} 8. c5 {[%emt 0:00:42]} Qxb3 {[%emt 0:00:15]} 9. axb3 {[%emt 0:00:07]} Nbd7 {[%emt 0:01:23] [#]} 10. Nf3 $146 {[%emt 0:18:34]} ({Predecessor:} 10. Nxd7 Kxd7 11. b4 Ne4 12. b5 Nxc3 13. bxc3 cxb5 14. e3 Kc6 15. Ra5 b6 16. cxb6 {0-1 (51) Yang,K (2481)-Begunov,K (2325) Chess.com INT 2022}) 10... a6 {[%emt 0:07:30]} 11. h3 {[%emt 0:11:29]} h6 {[%emt 0:14:35]} 12. b4 {[%emt 0:12:56]} Rc8 {[%emt 0:03:14]} 13. g4 {[%emt 0:05:46]} Bh7 {[%emt 0:01:07]} 14. Bf4 {[%emt 0:01:55][%cal Bc1f4,Bf4h2,Bh2d6][%mdl 32]} g5 {[%emt 0:04:50]} 15. Bh2 {[%emt 0:07:39]} Bg7 {[%emt 0:01:47]} 16. Nd2 {[%emt 0:01:46]} Ne4 {[%emt 0:24:25]} 17. Ndxe4 {[%emt 0:10:21]} dxe4 {[%emt 0:04:49]} 18. e3 {[%emt 0:00:33]} O-O {[%emt 0:00:49]} 19. Bd6 {[%emt 0:01:30]} Rfe8 {[%emt 0:00:48]} 20. Bg2 {[%emt 0:01:59]} f5 {[%emt 0:01:12]} 21. Bf1 {[%emt 0:04:08]} Nf6 {[%emt 0:05:22]} 22. gxf5 {[%emt 0:01:33] White is more active.} Bxf5 {[%emt 0:03:59]} 23. Bg2 {[%emt 0:00:33]} Nd5 {[%emt 0:06:11]} 24. Nxe4 {[%emt 0:03:53]} Nxb4 {[%emt 0:02:43]} 25. Ra4 $1 {[%emt 0:00:04]} a5 {[%emt 0:00:00]} (25... Nd3+ $2 26. Ke2 $18) 26. Rxa5 {[%emt 0:01:38]} e5 {[%emt 0:01:41]} 27. Ng3 {[%emt 0:00:28]} Bg6 {[%emt 0:02:37]} 28. dxe5 {[%emt 0:00:42]} Bxe5 {[%emt 0:01:40]} 29. O-O {[%emt 0:01:15]} Rcd8 {[%emt 0:01:06]} 30. Ra7 {[%emt 0:00:51] [#] Threatens to win with Bxe5.} Rd7 {[%emt 0:00:50]} 31. Be4 {[%emt 0:00:41]} (31. Rfa1 $16) 31... Bxe4 $14 {[%emt 0:01:26]} 32. Nxe4 {[%emt 0:00:05]} Bxb2 {[%emt 0:00:13]} 33. Rb1 {[%emt 0:00:17] Hoping for f3.} Rxe4 {[%emt 0:00:54]} 34. Rxb2 {[%emt 0:00:07]} Rc4 $1 {[%emt 0:00:21]} 35. Kg2 {[%emt 0:00:21] Black should prevent Ra4.} Nd3 {[%emt 0:00:24][%csl LRb2,LRc5]} 36. Rbxb7 {[%emt 0:00:51]} Rxb7 {[%emt 0:00:01]} 37. Rxb7 {[%emt 0:00:03]} Nxc5 $11 {[%emt 0:00:21][%mdl 4096] Endgame KRB-KRN} 38. Rb8+ {[%emt 0:01:02] The position is equal.} Kf7 {[%emt 0:01:24]} 39. Rh8 {[%emt 0:00:50]} Kg6 {[%emt 0:00:26]} 40. Bf8 {[%emt 0:00:37]} Ne4 {[%emt 0:00:35]} 41. Rxh6+ {[%emt 0:10:41]} Kf7 {[%emt 0:01:41]} 42. Bd6 {[%emt 0:00:38]} Kg7 {[%emt 0:09:53]} 43. Re6 {[%emt 0:00:14] Be7 is the strong threat.} Kf7 {[%emt 0:00:21]} 44. Re7+ {[%emt 0:06:54]} Kf6 {[%emt 0:00:48]} 45. Ba3 {[%emt 0:01:38]} Ra4 {[%emt 0:05:05]} 46. Re8 {[%emt 0:06:43] Threatening Bb2+.} Nxf2 {[%emt 0:02:51] [#]} 47. Rc8 $1 {[%emt 0:01:57] And now Bb2+ would win.} Ne4 {[%emt 0:04:28]} (47... Rxa3 48. Rxc6+) 48. Rxc6+ {[%emt 0:00:13]} Kf5 {[%emt 0:00:07]} 49. Bb2 {[%emt 0:02:03]} Ra2 {[%emt 0:02:35]} 50. Rb6 {[%emt 0:01:09]} Nd2 {[%emt 0:01:37]} 51. Kg3 {[%emt 0:00:40]} Ne4+ {[%emt 0:02:48]} 52. Kf3 {[%emt 0:00:21] aiming for Rb5+.} Nd2+ {[%emt 0:00:08]} 53. Kg3 {[%emt 0:00:07]} Ne4+ {[%emt 0:00:06] Weighted Error Value: White=0.04 (flawless) /Black=0.04 (flawless)} 1/2-1/2

[Event "44th Chess Olympiad Open 2022"]
[Site "Chennai"]
[Date "2022.08.05"]
[Round "7.24"]
[White "Borisek, Jure"]
[Black "Stoyanov, Tsvetan"]
[Result "1/2-1/2"]
[ECO "B22"]
[WhiteElo "2577"]
[BlackElo "2450"]
[Annotator "ChessBase"]
[PlyCount "61"]
[EventDate "2022.07.29"]
[EventType "team-tourn"]
[EventCountry "IND"]
[SourceTitle "playchess.com"]
[Source "ChessBase"]
[SourceQuality "1"]
[WhiteTeam "Slovenia"]
[BlackTeam "Bulgaria"]
[WhiteTeamCountry "SLO"]
[BlackTeamCountry "BUL"]
[TimeControl "40/5400+30:1800+30"]

1. e4 {[%emt 0:00:04]} c5 {[%emt 0:00:06]} 2. Nf3 {[%emt 0:00:05]} a6 {[%emt 0:00:12]} 3. c3 {[%emt 0:04:01]} d5 {[%emt 0:00:25]} 4. exd5 {[%emt 0:00:54]} Qxd5 {[%emt 0:00:02]} 5. d4 {[%emt 0:00:09]} Nf6 {[%emt 0:00:23]} 6. Be2 {[%emt 0:04:38]} e6 {[%emt 0:00:14]} 7. O-O {[%emt 0:00:57]} cxd4 {[%emt 0:00:26]} 8. cxd4 {[%emt 0:00:55]} Nc6 {[%emt 0:00:28]} 9. Nc3 {[%emt 0:03:02]} Qd8 {[%emt 0:00:10]} 10. Be3 {[%emt 0:09:26]} Be7 {[%emt 0:01:08]} 11. Ne5 {[%emt 0:00:23]} O-O {[%emt 0:09:57]} 12. Rc1 {[%emt 0:03:12]} Nb4 {[%emt 0:10:49]} 13. Bf3 {[%emt 0:05:15]} Nbd5 {[%emt 0:04:43]} 14. Qb3 {[%emt 0:00:55]} Nxe3 {[%emt 0:09:08]} 15. fxe3 {[%emt 0:00:05]} Bd6 {[%emt 0:00:09]} 16. Nd3 {[%emt 0:18:36]} Qe7 {[%emt 0:08:34]} 17. Na4 {[%emt 0:04:29]} e5 {[%emt 0:04:43]} 18. dxe5 {[%emt 0:06:59]} Bxe5 {[%emt 0:00:43]} 19. Nxe5 {[%emt 0:04:10]} Qxe5 {[%emt 0:00:00]} 20. Rc5 {[%emt 0:01:01]} Qe7 {[%emt 0:01:52]} 21. Qc3 {[%emt 0:03:26]} Bg4 {[%emt 0:24:32]} 22. Re5 {[%emt 0:13:49]} Be6 {[%emt 0:00:00]} 23. Qc5 {[%emt 0:04:34]} Rfe8 {[%emt 0:00:24]} 24. Qxe7 {[%emt 0:00:00]} Rxe7 {[%emt 0:00:01]} 25. Nc5 {[%emt 0:00:00]} Nd7 {[%emt 0:03:01]} 26. Bxb7 {[%emt 0:00:00]} Nxe5 {[%emt 0:12:20]} 27. Bxa8 {[%emt 0:00:00]} Bxa2 {[%emt 0:00:05]} 28. Ra1 {[%emt 0:01:54]} Bc4 {[%emt 0:00:45]} 29. Bb7 {[%emt 0:04:01]} g6 {[%emt 0:02:32]} 30. Bxa6 {[%emt 0:01:30]} Bxa6 {[%emt 0:01:06]} 31. Nxa6 {[%emt 0:00:42]} 1/2-1/2

[Event "44th Chess Olympiad Open 2022"]
[Site "Chennai"]
[Date "2022.08.05"]
[Round "7.24"]
[White "Petkov, Momchil"]
[Black "Subelj, Jan"]
[Result "1/2-1/2"]
[ECO "E05"]
[WhiteElo "2510"]
[BlackElo "2498"]
[Annotator "ChessBase"]
[PlyCount "65"]
[EventDate "2022.07.29"]
[EventType "team-tourn"]
[EventCountry "IND"]
[SourceTitle "playchess.com"]
[Source "ChessBase"]
[SourceQuality "1"]
[WhiteTeam "Bulgaria"]
[BlackTeam "Slovenia"]
[WhiteTeamCountry "BUL"]
[BlackTeamCountry "SLO"]
[TimeControl "40/5400+30:1800+30"]

1. d4 {[%emt 0:00:08]} d5 {[%emt 0:00:34]} 2. c4 {[%emt 0:00:20]} e6 {[%emt 0:04:07]} 3. Nf3 {[%emt 0:00:15]} Nf6 {[%emt 0:00:45]} 4. g3 {[%emt 0:02:59]} Be7 {[%emt 0:02:34]} 5. Bg2 {[%emt 0:00:00]} O-O {[%emt 0:00:40]} 6. O-O {[%emt 0:00:11]} dxc4 {[%emt 0:00:45]} 7. Qc2 {[%emt 0:00:53]} b5 {[%emt 0:14:10]} 8. a4 {[%emt 0:13:32]} Bb7 {[%emt 0:00:00]} 9. axb5 {[%emt 0:00:35]} a6 {[%emt 0:01:27]} 10. Nc3 {[%emt 0:01:14]} axb5 {[%emt 0:06:00]} 11. Rxa8 {[%emt 0:00:40]} Bxa8 {[%emt 0:00:00]} 12. Nxb5 {[%emt 0:00:35]} Bd5 {[%emt 0:00:00]} 13. Bf4 {[%emt 0:09:01]} c5 {[%emt 0:00:00]} 14. dxc5 {[%emt 0:00:00]} Qa5 {[%emt 0:00:00]} 15. Nc3 {[%emt 0:15:53]} Bxc5 {[%emt 0:10:22]} 16. e4 {[%emt 0:02:46]} Ba8 {[%emt 0:05:41]} 17. e5 {[%emt 0:06:33]} Bxf3 {[%emt 0:08:00]} 18. Bxf3 {[%emt 0:00:00]} Nfd7 {[%emt 0:14:27]} 19. Qe2 {[%emt 0:04:10]} Bd4 {[%emt 0:01:37]} 20. Rd1 {[%emt 0:08:33]} Bxe5 {[%emt 0:00:07]} 21. Qxc4 {[%emt 0:00:06]} Bxf4 {[%emt 0:00:17]} 22. Qxf4 {[%emt 0:01:00]} Ne5 {[%emt 0:02:01]} 23. Bg2 {[%emt 0:01:38]} Nbc6 {[%emt 0:05:08]} 24. Qa4 {[%emt 0:03:55]} Qxa4 {[%emt 0:00:09]} 25. Nxa4 {[%emt 0:00:00]} Nb4 {[%emt 0:09:54]} 26. Rd4 {[%emt 0:08:01]} Rb8 {[%emt 0:00:47]} 27. Nc5 {[%emt 0:03:42]} h6 {[%emt 0:04:11]} 28. f4 {[%emt 0:01:13]} Nec6 {[%emt 0:03:03]} 29. Rd7 {[%emt 0:03:17]} Rb5 {[%emt 0:01:39]} 30. Nd3 {[%emt 0:02:02]} Rb8 {[%emt 0:00:30]} 31. Nc5 {[%emt 0:04:28]} Rb5 {[%emt 0:00:00]} 32. Nd3 {[%emt 0:01:18]} Rb8 {[%emt 0:03:30]} 33. Nc5 {[%emt 0:06:13]} 1/2-1/2

[Event "44th Chess Olympiad Open 2022"]
[Site "Chennai"]
[Date "2022.08.05"]
[Round "7.24"]
[White "Dobrovoljc, Vid"]
[Black "Tashev, Aleksandar"]
[Result "1-0"]
[ECO "B23"]
[WhiteElo "2398"]
[BlackElo "2262"]
[Annotator "TA"]
[PlyCount "101"]
[EventDate "2022.07.29"]
[EventType "team-tourn"]
[EventCountry "IND"]
[SourceTitle "playchess.com"]
[Source "ChessBase"]
[SourceQuality "1"]
[WhiteTeam "Slovenia"]
[BlackTeam "Bulgaria"]
[WhiteTeamCountry "SLO"]
[BlackTeamCountry "BUL"]
[TimeControl "40/5400+30:1800+30"]

{[%evp 13,101,20,29,33,27,28,60,64,60,54,57,62,54,38,46,53,57,54,47,44,34,35,42,0,18,38,52,20,71,32,52,38,77,78,118,119,150,164,167,138,178,169,246,213,220,228,231,232,231,233,247,247,346,343,339,339,379,380,368,357,612,586,563,604,582,573,588,610,1473,1440,1562,1096,986,981,973,962,876,848,1500,1227,2825,1460,29973,29974,29978,29979,29975,29975,29976,29971]} 1. e4 {[%emt 0:00:10]} c5 {[%emt 0:00:17]} 2. Nc3 {[%emt 0:00:33]} Nc6 {[%emt 0:02:36]} 3. Bb5 {[%emt 0:01:22]} d6 {[%emt 0:10:00]} 4. Bxc6+ {[%emt 0:06:48]} bxc6 {[%emt 0:00:18]} 5. f4 {[%emt 0:00:23]} Nf6 {[%emt 0:08:59]} 6. Nf3 {[%emt 0:02:39]} g6 {[%emt 0:01:06]} 7. O-O {[%emt 0:01:39]} Bg7 {[%emt 0:03:06]} 8. d3 {[%emt 0:00:36] B23: Closed Sicilian: Lines without g3.} Rb8 {[%emt 0:05:19]} 9. Qe1 {[%emt 0:07:02]} Nd7 {[%emt 0:06:45]} 10. Rb1 {[%emt 0:16:55] White is slightly better.} O-O {[%emt 0:04:46]} 11. Bd2 {[%emt 0:04:07]} e6 {[%emt 0:12:46]} 12. b3 {[%emt 0:02:50] [#]} Qc7 $146 {[%emt 0:10:33]} ({Predecessor:} 12... Re8 13. Qg3 Qa5 14. e5 d5 15. a4 Qc7 16. Ne2 Ba6 17. Rfe1 c4 18. dxc4 dxc4 {0-1 (31) Crowther,M-Melgosa,M (2295) Dos Hermanas 2004}) 13. f5 {[%emt 0:17:57]} exf5 {[%emt 0:03:48]} 14. exf5 {[%emt 0:00:22]} Nf6 {[%emt 0:02:01]} 15. fxg6 {[%emt 0:10:33]} fxg6 {[%emt 0:01:09]} 16. Qh4 {[%emt 0:00:02]} Bf5 {[%emt 0:05:27]} 17. Rbe1 {[%emt 0:03:01]} Rbe8 {[%emt 0:02:26]} 18. Ne4 {[%emt 0:00:44]} Nxe4 {[%emt 0:01:35]} (18... Bxe4 $5 19. dxe4 Qd7 $11) 19. dxe4 {[%emt 0:00:12]} Bc8 {[%emt 0:00:13]} 20. c4 {[%emt 0:11:36] Inhibits d5.} Qe7 {[%emt 0:01:37]} (20... Qd7 $11) 21. Bg5 {[%emt 0:00:26]} Qe6 {[%emt 0:02:27]} 22. h3 {[%emt 0:01:16]} Rf7 {[%emt 0:02:02]} 23. Rd1 {[%emt 0:05:08] Black is now going downhill.} Rd7 {[%emt 0:02:48]} 24. Bf4 {[%emt 0:00:41]} Bf6 {[%emt 0:04:16] [#]} (24... Qxe4 $2 25. Rfe1 Rf7 26. Rxe4 $18) 25. Qg3 {[%emt 0:00:38]} Red8 {[%emt 0:01:03]} (25... Qxe4 $2 26. Rfe1 $18) 26. Rfe1 {[%emt 0:01:55]} Qe7 {[%emt 0:02:29]} 27. Kh2 {[%emt 0:01:27]} Bg7 {[%emt 0:01:21]} (27... a6 {was worth a try.} 28. Rxd6 Rxd6 29. Bxd6 Qxd6) 28. Bg5 $18 {[%emt 0:01:14]} Bf6 {[%emt 0:00:06]} 29. e5 {[%emt 0:00:09]} dxe5 {[%emt 0:01:57]} 30. Rxd7 {[%emt 0:00:03]} Bxd7 {[%emt 0:00:13]} 31. Rxe5 {[%emt 0:02:03]} (31. Nxe5 $6 Bxg5 32. Nxd7 Qxd7 $16) (31. Bxf6 $6 Qxf6 32. Rxe5 (32. Qxe5 Rf8 $16) 32... Bf5 $16) 31... Bxe5 {[%emt 0:00:38]} 32. Qxe5 {[%emt 0:00:06]} ({Worse is} 32. Bxe7 Bxg3+ 33. Kxg3 Re8 34. Bxc5 Re2 $17) (32. Nxe5 $6 Qe8 $16) 32... Qxe5+ {[%emt 0:01:09]} (32... Qe8 {might work better.} 33. Bxd8 (33. Qxc5 Rc8 $11) 33... Qxd8) 33. Nxe5 {[%emt 0:00:03]} Re8 {[%emt 0:00:11]} 34. Nxd7 {[%emt 0:00:05][%mdl 4096] Endgame} Re2 {[%emt 0:00:19]} 35. a4 {[%emt 0:00:11][%cal Ba2a4,Ba4a5,Ba5a6][%mdl 32]} Kf7 {[%emt 0:00:44]} 36. Bf4 {[%emt 0:00:19]} Ke6 $2 {[%emt 0:01:13]} (36... g5) 37. Nxc5+ {[%emt 0:00:05]} Kf5 {[%emt 0:00:05]} 38. Bb8 {[%emt 0:00:24]} Re7 {[%emt 0:01:02]} 39. a5 {[%emt 0:00:20]} h5 {[%emt 0:00:35]} 40. a6 {[%emt 0:00:57]} g5 {[%emt 0:00:18]} 41. Nb7 {[%emt 0:04:14]} Re3 {[%emt 0:02:22]} 42. Na5 {[%emt 0:00:16]} c5 {[%emt 0:00:36]} 43. Bxa7 {[%emt 0:04:23]} Re6 {[%emt 0:00:17]} 44. Bxc5 {[%emt 0:00:19] a7 is the strong threat.} Rxa6 {[%emt 0:00:04]} 45. b4 {[%emt 0:00:07]} h4 {[%emt 0:02:13]} 46. Bf2 {[%emt 0:02:27] And now c5 would win.} Ke4 {[%emt 0:04:21]} 47. c5 {[%emt 0:00:54][%cal Bc4c5,Bc5c6,Bc6c7][%mdl 32]} Kd3 {[%emt 0:02:17]} 48. c6 {[%emt 0:00:29] White mates.} Ke2 {[%emt 0:00:56]} 49. c7 {[%emt 0:02:09]} Ra8 {[%emt 0:00:03] [#]} 50. Nc6 $1 {[%emt 0:02:30]} Rc8 {[%emt 0:02:27]} (50... Rf8 51. Nd8) 51. Bb6 {[%emt 0:00:06] Weighted Error Value: White=0.06 (flawless) /Black=0.25 (precise)} 1-0